[Event "Early-Titled-Tuesday-Blitz-October-10-2023"]
[Site "Chess.com"]
[Date "2023.10.10"]
[Round "3"]
[White "LileKoridze"]
[Black "Bilan_Danila"]
[Result "0-1"]
[WhiteElo "2344"]
[BlackElo "2576"]
[TimeControl "180+1"]
[EndTime "8:28:47 PDT"]
[Termination "Bilan_Danila won on time"]

1. d4 {[%clk 0:03:00.9]} 1... d5 {[%clk 0:02:55.2]} 2. c4 {[%clk 0:03:01.2]}
2... c6 {[%clk 0:02:55.2]} 3. Nf3 {[%clk 0:02:59.9]} 3... Nf6 {[%clk 0:02:55.2]}
4. e3 {[%clk 0:02:58.7]} 4... e6 {[%clk 0:02:55.2]} 5. Bd3 {[%clk 0:02:55.8]}
5... Nbd7 {[%clk 0:02:51.6]} 6. O-O {[%clk 0:02:51.9]} 6... Bd6 {[%clk
0:02:49.9]} 7. Nbd2 {[%clk 0:02:46.5]} 7... e5 {[%clk 0:02:41.8]} 8. cxd5 {[%clk
0:02:44.1]} 8... cxd5 {[%clk 0:02:37.4]} 9. dxe5 {[%clk 0:02:44]} 9... Nxe5
{[%clk 0:02:38.3]} 10. Nxe5 {[%clk 0:02:43.9]} 10... Bxe5 {[%clk 0:02:39.2]} 11.
h3 {[%clk 0:02:44.2]} 11... O-O {[%clk 0:02:37.3]} 12. Rb1 {[%clk 0:02:42]}
12... Be6 {[%clk 0:01:57.2]} 13. Nf3 {[%clk 0:02:34.7]} 13... Bd6 {[%clk
0:01:44.2]} 14. b3 {[%clk 0:02:34]} 14... Ne4 {[%clk 0:01:44]} 15. Bb2 {[%clk
0:02:33.6]} 15... Rc8 {[%clk 0:01:19.2]} 16. Rc1 {[%clk 0:02:28.3]} 16... Qe7
{[%clk 0:01:09.1]} 17. Nd4 {[%clk 0:02:23.2]} 17... Bd7 {[%clk 0:01:02.2]} 18.
Qe2 {[%clk 0:02:21.8]} 18... a6 {[%clk 0:00:51.4]} 19. Nf3 {[%clk 0:01:12.4]}
19... Rfe8 {[%clk 0:00:37.3]} 20. Ba1 {[%clk 0:01:10.2]} 20... Ng5 {[%clk
0:00:36.5]} 21. Rxc8 {[%clk 0:00:48.4]} 21... Rxc8 {[%clk 0:00:27.7]} 22. Nxg5
{[%clk 0:00:48.4]} 22... Qxg5 {[%clk 0:00:28.6]} 23. f4 {[%clk 0:00:48.1]} 23...
Qe7 {[%clk 0:00:21.5]} 24. e4 {[%clk 0:00:45.9]} 24... dxe4 {[%clk 0:00:18.2]}
25. Bxe4 {[%clk 0:00:41.7]} 25... Re8 {[%clk 0:00:17.5]} 26. Qb2 {[%clk
0:00:40.4]} 26... f6 {[%clk 0:00:14.2]} 27. Bxb7 {[%clk 0:00:38.1]} 27... Bb5
{[%clk 0:00:13.5]} 28. Bd5+ {[%clk 0:00:37.3]} 28... Kh8 {[%clk 0:00:13]} 29.
Bc4 {[%clk 0:00:36.1]} 29... Bc5+ {[%clk 0:00:13.2]} 30. Kh1 {[%clk 0:00:34.7]}
30... Bc6 {[%clk 0:00:13.6]} 31. Bxa6 {[%clk 0:00:24.2]} 31... Qe3 {[%clk
0:00:12.3]} 32. Qc3 {[%clk 0:00:19.5]} 32... Qxc3 {[%clk 0:00:12.5]} 33. Bxc3
{[%clk 0:00:19.2]} 33... Re3 {[%clk 0:00:13.2]} 34. Kh2 {[%clk 0:00:04]} 34...
Rxc3 {[%clk 0:00:13]} 35. Rd1 {[%clk 0:00:04.1]} 35... g6 {[%clk 0:00:12.8]} 36.
Rd8+ {[%clk 0:00:04]} 36... Kg7 {[%clk 0:00:12.9]} 37. Rc8 {[%clk 0:00:04.4]}
37... Be3 {[%clk 0:00:10.7]} 38. b4 {[%clk 0:00:03.6]} 38... Bxf4+ {[%clk
0:00:10.7]} 39. Kg1 {[%clk 0:00:04]} 39... Be3+ {[%clk 0:00:11]} 40. Kf1 {[%clk
0:00:04]} 40... Rc2 {[%clk 0:00:08.8]} 41. Rc7+ {[%clk 0:00:03]} 41... Kh6
{[%clk 0:00:08.7]} 42. Re7 {[%clk 0:00:03.6]} 42... Bxg2+ {[%clk 0:00:08.9]} 43.
Ke1 {[%clk 0:00:03.7]} 43... Bf2+ {[%clk 0:00:07.8]} 44. Kd1 {[%clk 0:00:03.8]}
44... Rxa2 {[%clk 0:00:08.1]} 45. Be2 {[%clk 0:00:03.9]} 45... Bxh3 {[%clk
0:00:08.1]} 46. b5 {[%clk 0:00:04]} 46... f5 {[%clk 0:00:08.4]} 47. b6 {[%clk
0:00:04.2]} 47... Bxb6 {[%clk 0:00:08.1]} 48. Bc4 {[%clk 0:00:03.4]} 48... Bg4+
{[%clk 0:00:08.2]} 49. Kc1 {[%clk 0:00:02.9]} 49... Ra7 {[%clk 0:00:07.6]} 50.
Re8 {[%clk 0:00:02.6]} 50... Rc7 {[%clk 0:00:07.8]} 0-1

[Event "Early-Titled-Tuesday-Blitz-October-10-2023"]
[Site "Chess.com"]
[Date "2023.10.10"]
[Round "3"]
[White "Byniolus"]
[Black "Krakozia"]
[Result "1-0"]
[WhiteElo "2730"]
[BlackElo "3003"]
[TimeControl "180+1"]
[EndTime "8:28:53 PDT"]
[Termination "Byniolus won on time"]

1. d4 {[%clk 0:03:00.9]} 1... d5 {[%clk 0:02:59.5]} 2. Bf4 {[%clk 0:03:00.5]}
2... c5 {[%clk 0:02:58.4]} 3. c3 {[%clk 0:02:58.9]} 3... Nc6 {[%clk 0:02:56.5]}
4. e3 {[%clk 0:02:59.1]} 4... Nf6 {[%clk 0:02:52.3]} 5. Nd2 {[%clk 0:02:58.8]}
5... Qb6 {[%clk 0:02:45.4]} 6. Qb3 {[%clk 0:02:58.8]} 6... c4 {[%clk 0:02:25.3]}
7. Qc2 {[%clk 0:02:58.9]} 7... g6 {[%clk 0:02:24.9]} 8. e4 {[%clk 0:02:59]} 8...
Nxe4 {[%clk 0:02:13.3]} 9. Nxe4 {[%clk 0:02:57.7]} 9... dxe4 {[%clk 0:02:13.3]}
10. Bxc4 {[%clk 0:02:56]} 10... Bg7 {[%clk 0:02:10.8]} 11. Ne2 {[%clk
0:02:50.9]} 11... O-O {[%clk 0:02:06.7]} 12. O-O {[%clk 0:02:49]} 12... Bf5
{[%clk 0:01:52]} 13. Ng3 {[%clk 0:02:18.9]} 13... Rac8 {[%clk 0:01:51.8]} 14.
Qb3 {[%clk 0:02:09]} 14... e5 {[%clk 0:01:33.3]} 15. dxe5 {[%clk 0:01:54.4]}
15... Bxe5 {[%clk 0:01:22.2]} 16. Qxb6 {[%clk 0:01:28.9]} 16... axb6 {[%clk
0:01:21]} 17. Bxe5 {[%clk 0:01:29.8]} 17... Nxe5 {[%clk 0:01:20.7]} 18. Bd5
{[%clk 0:01:30.7]} 18... Nd3 {[%clk 0:00:57.3]} 19. Bxb7 {[%clk 0:01:20.6]}
19... Rce8 {[%clk 0:00:57.1]} 20. b3 {[%clk 0:01:07.7]} 20... Re5 {[%clk
0:00:56.8]} 21. Rfd1 {[%clk 0:01:00.3]} 21... Nc5 {[%clk 0:00:49]} 22. Bd5
{[%clk 0:00:57.3]} 22... Be6 {[%clk 0:00:48.4]} 23. Bxe6 {[%clk 0:00:53.4]}
23... Rxe6 {[%clk 0:00:48]} 24. Ne2 {[%clk 0:00:45.4]} 24... e3 {[%clk
0:00:37.3]} 25. Nd4 {[%clk 0:00:31.9]} 25... exf2+ {[%clk 0:00:22.9]} 26. Kxf2
{[%clk 0:00:32.8]} 26... Rf6+ {[%clk 0:00:20.2]} 27. Kg1 {[%clk 0:00:31.4]}
27... Ne4 {[%clk 0:00:19.6]} 28. c4 {[%clk 0:00:27.6]} 28... h5 {[%clk
0:00:19.7]} 29. Nb5 {[%clk 0:00:21.6]} 29... Re8 {[%clk 0:00:13.9]} 30. Rd4
{[%clk 0:00:18.6]} 30... Nc5 {[%clk 0:00:07.4]} 31. Rad1 {[%clk 0:00:16]} 31...
Kg7 {[%clk 0:00:06.1]} 32. b4 {[%clk 0:00:13.4]} 32... Na4 {[%clk 0:00:05.4]}
33. h3 {[%clk 0:00:11.2]} 33... Re2 {[%clk 0:00:05.3]} 34. R4d2 {[%clk
0:00:11.6]} 34... Rff2 {[%clk 0:00:04.7]} 35. Rxe2 {[%clk 0:00:10]} 35... Rxe2
{[%clk 0:00:05.4]} 36. a3 {[%clk 0:00:09.8]} 36... Nb2 {[%clk 0:00:05.1]} 37.
Rd4 {[%clk 0:00:08.1]} 37... Rc2 {[%clk 0:00:02.9]} 38. Nd6 {[%clk 0:00:08.7]}
38... Rc3 {[%clk 0:00:03.1]} 39. Rf4 {[%clk 0:00:04.8]} 39... f5 {[%clk
0:00:02.4]} 40. Rd4 {[%clk 0:00:04.1]} 40... Rxa3 {[%clk 0:00:02.3]} 41. Nc8
{[%clk 0:00:04.8]} 41... Rb3 {[%clk 0:00:02]} 42. b5 {[%clk 0:00:04.7]} 42...
Na4 {[%clk 0:00:02.3]} 43. Rd7+ {[%clk 0:00:03.4]} 43... Kf6 {[%clk 0:00:02.2]}
44. Rd6+ {[%clk 0:00:04.3]} 44... Ke5 {[%clk 0:00:02.4]} 45. Rxg6 {[%clk
0:00:04.5]} 45... Kf4 {[%clk 0:00:02.6]} 46. Nxb6 {[%clk 0:00:04.2]} 46... Nc5
{[%clk 0:00:02.3]} 47. Nd5+ {[%clk 0:00:04.1]} 47... Ke5 {[%clk 0:00:02.6]} 48.
b6 {[%clk 0:00:04.1]} 48... Ne4 {[%clk 0:00:02.6]} 49. Kh2 {[%clk 0:00:03.7]}
49... h4 {[%clk 0:00:02.7]} 50. Ne7 {[%clk 0:00:02.7]} 50... Ng3 {[%clk
0:00:01.9]} 51. Nc6+ {[%clk 0:00:01.6]} 51... Kf4 {[%clk 0:00:01.6]} 52. Nd4
{[%clk 0:00:01.9]} 1-0

[Event "Early-Titled-Tuesday-Blitz-October-10-2023"]
[Site "Chess.com"]
[Date "2023.10.10"]
[Round "3"]
[White "SAInt_666"]
[Black "remi04"]
[Result "1-0"]
[WhiteElo "2668"]
[BlackElo "2863"]
[TimeControl "180+1"]
[EndTime "8:28:55 PDT"]
[Termination "SAInt_666 won on time"]

1. e4 {[%clk 0:03:00.9]} 1... c5 {[%clk 0:01:50.6]} 2. Nf3 {[%clk 0:03:00.5]}
2... d6 {[%clk 0:01:50.2]} 3. Bb5+ {[%clk 0:03:00.2]} 3... Nd7 {[%clk
0:01:49.7]} 4. O-O {[%clk 0:03:00.1]} 4... a6 {[%clk 0:01:50]} 5. Bxd7+ {[%clk
0:03:00.3]} 5... Bxd7 {[%clk 0:01:50.9]} 6. c3 {[%clk 0:03:01]} 6... Nf6 {[%clk
0:01:50.6]} 7. Re1 {[%clk 0:03:01.7]} 7... e6 {[%clk 0:01:49.5]} 8. d4 {[%clk
0:03:01.8]} 8... Be7 {[%clk 0:01:48.4]} 9. Nbd2 {[%clk 0:02:52.8]} 9... O-O
{[%clk 0:01:47.7]} 10. Nf1 {[%clk 0:02:52.6]} 10... cxd4 {[%clk 0:01:45.6]} 11.
cxd4 {[%clk 0:02:52.5]} 11... Rc8 {[%clk 0:01:44.6]} 12. Ng3 {[%clk 0:02:47.6]}
12... Qc7 {[%clk 0:01:44.1]} 13. Bf4 {[%clk 0:02:35.9]} 13... Qc2 {[%clk
0:01:42.9]} 14. Re2 {[%clk 0:02:34.9]} 14... Qxd1+ {[%clk 0:01:28.8]} 15. Rxd1
{[%clk 0:02:35.8]} 15... d5 {[%clk 0:01:26.8]} 16. e5 {[%clk 0:02:32]} 16... Ne4
{[%clk 0:01:25.4]} 17. Nxe4 {[%clk 0:02:24.5]} 17... dxe4 {[%clk 0:01:26.3]} 18.
Rxe4 {[%clk 0:02:13.9]} 18... Rc2 {[%clk 0:01:24.9]} 19. Rd2 {[%clk 0:02:09.1]}
19... Rfc8 {[%clk 0:01:15.4]} 20. h3 {[%clk 0:01:24.6]} 20... Rc1+ {[%clk
0:01:13.8]} 21. Kh2 {[%clk 0:01:22.7]} 21... Bc6 {[%clk 0:01:12.8]} 22. Re3
{[%clk 0:01:17]} 22... Bd5 {[%clk 0:01:12.3]} 23. a3 {[%clk 0:01:13.6]} 23... b5
{[%clk 0:00:59.5]} 24. Ne1 {[%clk 0:01:07]} 24... h5 {[%clk 0:00:49.5]} 25. Nd3
{[%clk 0:01:04.4]} 25... R1c2 {[%clk 0:00:49.3]} 26. Ree2 {[%clk 0:01:03.6]}
26... R2c4 {[%clk 0:00:47.9]} 27. Be3 {[%clk 0:00:59.9]} 27... g5 {[%clk
0:00:28.6]} 28. Nc5 {[%clk 0:00:51.4]} 28... a5 {[%clk 0:00:26.3]} 29. Rc2
{[%clk 0:00:45.3]} 29... a4 {[%clk 0:00:21]} 30. Rxc4 {[%clk 0:00:43.6]} 30...
Bxc4 {[%clk 0:00:21.9]} 31. Rc2 {[%clk 0:00:41.7]} 31... Kg7 {[%clk 0:00:21.7]}
32. Ne4 {[%clk 0:00:39.2]} 32... Rd8 {[%clk 0:00:17.1]} 33. Bxg5 {[%clk
0:00:22]} 33... Bxg5 {[%clk 0:00:16.8]} 34. Nxg5 {[%clk 0:00:22.9]} 34... Rxd4
{[%clk 0:00:16.6]} 35. Nf3 {[%clk 0:00:23.7]} 35... Rd3 {[%clk 0:00:16.4]} 36.
Rd2 {[%clk 0:00:23.5]} 36... Rxd2 {[%clk 0:00:06.7]} 37. Nxd2 {[%clk 0:00:24.4]}
37... Bd5 {[%clk 0:00:07]} 38. h4 {[%clk 0:00:22.9]} 38... Kg6 {[%clk
0:00:07.1]} 39. f4 {[%clk 0:00:20.8]} 39... Kf5 {[%clk 0:00:07.4]} 40. g3 {[%clk
0:00:21.3]} 40... Kg4 {[%clk 0:00:06.8]} 41. Nb1 {[%clk 0:00:13.8]} 41... Kf3
{[%clk 0:00:07.2]} 42. Nc3 {[%clk 0:00:14.7]} 42... Bc4 {[%clk 0:00:07.2]} 43.
Kh3 {[%clk 0:00:15.2]} 43... Bf1+ {[%clk 0:00:06.8]} 44. Kh2 {[%clk 0:00:15.5]}
44... Ke3 {[%clk 0:00:06.1]} 45. Na2 {[%clk 0:00:13.7]} 45... Kd2 {[%clk
0:00:04.8]} 46. g4 {[%clk 0:00:14.1]} 46... hxg4 {[%clk 0:00:04.7]} 47. h5
{[%clk 0:00:14]} 47... Bd3 {[%clk 0:00:03.3]} 48. Kg3 {[%clk 0:00:14.4]} 48...
Bf5 {[%clk 0:00:03.1]} 49. Nc3 {[%clk 0:00:12.4]} 49... Kc2 {[%clk 0:00:03.4]}
50. Nxb5 {[%clk 0:00:12.7]} 50... Kxb2 {[%clk 0:00:04.3]} 51. h6 {[%clk
0:00:12.7]} 51... Kb3 {[%clk 0:00:03.7]} 52. Nd4+ {[%clk 0:00:13]} 52... Kxa3
{[%clk 0:00:04.3]} 53. Nxf5 {[%clk 0:00:13.9]} 53... exf5 {[%clk 0:00:05]} 54.
h7 {[%clk 0:00:14.8]} 54... Kb2 {[%clk 0:00:05.6]} 55. h8=Q {[%clk 0:00:15.7]}
55... a3 {[%clk 0:00:06.5]} 56. e6+ {[%clk 0:00:16.3]} 56... Kb1 {[%clk
0:00:06.9]} 57. exf7 {[%clk 0:00:17.2]} 57... a2 {[%clk 0:00:06.9]} 58. f8=Q
{[%clk 0:00:17.6]} 1-0

[Event "Early-Titled-Tuesday-Blitz-October-10-2023"]
[Site "Chess.com"]
[Date "2023.10.10"]
[Round "3"]
[White "santosalberto1987"]
[Black "BeanScreen"]
[Result "0-1"]
[WhiteElo "2486"]
[BlackElo "2725"]
[TimeControl "180+1"]
[EndTime "8:28:56 PDT"]
[Termination "BeanScreen won by checkmate"]

1. e4 {[%clk 0:03:00.9]} 1... e5 {[%clk 0:03:00.1]} 2. Nf3 {[%clk 0:03:00.8]}
2... Nc6 {[%clk 0:03:00.7]} 3. Bc4 {[%clk 0:03:01]} 3... Nf6 {[%clk 0:03:00.7]}
4. d3 {[%clk 0:02:58.8]} 4... Be7 {[%clk 0:03:01.2]} 5. O-O {[%clk 0:02:58.3]}
5... O-O {[%clk 0:03:01.6]} 6. Re1 {[%clk 0:02:57.8]} 6... d6 {[%clk 0:03:01.7]}
7. c3 {[%clk 0:02:58]} 7... Na5 {[%clk 0:03:01]} 8. Bb5 {[%clk 0:02:57.4]} 8...
a6 {[%clk 0:03:01.5]} 9. Ba4 {[%clk 0:02:57.6]} 9... b5 {[%clk 0:03:01.9]} 10.
Bc2 {[%clk 0:02:58]} 10... c5 {[%clk 0:03:02.3]} 11. h3 {[%clk 0:02:56.9]} 11...
h6 {[%clk 0:02:58.5]} 12. d4 {[%clk 0:02:56.6]} 12... exd4 {[%clk 0:02:53.9]}
13. cxd4 {[%clk 0:02:57.5]} 13... Nc6 {[%clk 0:02:53.8]} 14. Nc3 {[%clk
0:02:56.2]} 14... cxd4 {[%clk 0:02:45.7]} 15. Nxd4 {[%clk 0:02:55.9]} 15... Nxd4
{[%clk 0:02:41.6]} 16. Qxd4 {[%clk 0:02:56.8]} 16... Re8 {[%clk 0:02:37]} 17.
Bf4 {[%clk 0:02:56.1]} 17... Be6 {[%clk 0:02:25.7]} 18. Rad1 {[%clk 0:02:54.4]}
18... Rc8 {[%clk 0:02:26]} 19. a3 {[%clk 0:02:51.6]} 19... a5 {[%clk 0:02:17.9]}
20. Bd3 {[%clk 0:02:36.6]} 20... b4 {[%clk 0:02:14.9]} 21. axb4 {[%clk
0:02:36.1]} 21... axb4 {[%clk 0:02:15.8]} 22. Qxb4 {[%clk 0:02:21.9]} 22... Rb8
{[%clk 0:01:48.2]} 23. Bb5 {[%clk 0:02:21.8]} 23... Bd7 {[%clk 0:01:41.8]} 24.
Qa4 {[%clk 0:02:21.3]} 24... Rxb5 {[%clk 0:01:33.8]} 25. Nxb5 {[%clk 0:02:22.2]}
25... Qb6 {[%clk 0:01:31.9]} 26. e5 {[%clk 0:02:01.1]} 26... Bxb5 {[%clk
0:01:31.7]} 27. Qb3 {[%clk 0:02:00.9]} 27... dxe5 {[%clk 0:01:30.5]} 28. Rxe5
{[%clk 0:02:00.8]} 28... Bc5 {[%clk 0:01:14.1]} 29. Rxe8+ {[%clk 0:01:47.8]}
29... Nxe8 {[%clk 0:01:13.5]} 30. Be3 {[%clk 0:01:40.4]} 30... Bxe3 {[%clk
0:01:00]} 31. Qxe3 {[%clk 0:01:32.4]} 31... Qf6 {[%clk 0:00:54]} 32. Qd4 {[%clk
0:01:21.1]} 32... Qg6 {[%clk 0:00:51.4]} 33. b4 {[%clk 0:01:19.3]} 33... Bc6
{[%clk 0:00:51.1]} 34. Qg4 {[%clk 0:01:12.4]} 34... Qc2 {[%clk 0:00:47.1]} 35.
Rd8 {[%clk 0:01:07.1]} 35... Kh7 {[%clk 0:00:47.3]} 36. Qd4 {[%clk 0:00:58.5]}
36... Qg6 {[%clk 0:00:39.9]} 37. Qg4 {[%clk 0:00:53.7]} 37... Qb1+ {[%clk
0:00:39.5]} 38. Kh2 {[%clk 0:00:53.7]} 38... Nf6 {[%clk 0:00:39.1]} 39. Qd4
{[%clk 0:00:38.3]} 39... Qg6 {[%clk 0:00:36.1]} 40. f3 {[%clk 0:00:38.5]} 40...
Nh5 {[%clk 0:00:31.3]} 41. Qd3 {[%clk 0:00:36.6]} 41... f5 {[%clk 0:00:31.5]}
42. Qd6 {[%clk 0:00:29.3]} 42... Nf6 {[%clk 0:00:28.7]} 43. Kh1 {[%clk
0:00:19.4]} 43... Bb5 {[%clk 0:00:25.3]} 44. Kh2 {[%clk 0:00:14.4]} 44... Qg5
{[%clk 0:00:20.9]} 45. Qg3 {[%clk 0:00:12.5]} 45... Ng4+ {[%clk 0:00:20.5]} 46.
hxg4 {[%clk 0:00:12.1]} 46... Qxd8 {[%clk 0:00:21.4]} 47. gxf5 {[%clk
0:00:11.7]} 47... Qf8 {[%clk 0:00:16.5]} 48. Qf4 {[%clk 0:00:10.9]} 48... Bd7
{[%clk 0:00:15.5]} 49. g4 {[%clk 0:00:11.1]} 49... Qf6 {[%clk 0:00:15.7]} 50.
Kg3 {[%clk 0:00:10]} 50... Qa1 {[%clk 0:00:14.4]} 51. Qd6 {[%clk 0:00:09.2]}
51... Qg1+ {[%clk 0:00:14]} 52. Kh3 {[%clk 0:00:09.5]} 52... Qf1+ {[%clk
0:00:13.9]} 53. Kg3 {[%clk 0:00:09.8]} 53... Qg1+ {[%clk 0:00:13.9]} 54. Kh3
{[%clk 0:00:10.2]} 54... Bb5 {[%clk 0:00:14.2]} 55. f6 {[%clk 0:00:07.9]} 55...
Bf1+ {[%clk 0:00:13.9]} 56. Kh4 {[%clk 0:00:06.5]} 56... g5+ {[%clk 0:00:14.2]}
57. Kh5 {[%clk 0:00:04.8]} 57... Qh1+ {[%clk 0:00:14.7]} 58. Qh2 {[%clk
0:00:02.4]} 58... Qxh2# {[%clk 0:00:14.8]} 0-1

[Event "Early-Titled-Tuesday-Blitz-October-10-2023"]
[Site "Chess.com"]
[Date "2023.10.10"]
[Round "3"]
[White "GeorgiosSouleidis"]
[Black "Drags95"]
[Result "0-1"]
[WhiteElo "2646"]
[BlackElo "2877"]
[TimeControl "180+1"]
[EndTime "8:28:57 PDT"]
[Termination "Drags95 won on time"]

1. e4 {[%clk 0:03:00.9]} 1... c5 {[%clk 0:02:54.1]} 2. Be2 {[%clk 0:02:51.3]}
2... e6 {[%clk 0:02:53]} 3. d3 {[%clk 0:02:51.9]} 3... d5 {[%clk 0:02:52.9]} 4.
f4 {[%clk 0:02:52.4]} 4... Nf6 {[%clk 0:02:51.2]} 5. e5 {[%clk 0:02:51.9]} 5...
Nfd7 {[%clk 0:02:50.9]} 6. Nf3 {[%clk 0:02:52.5]} 6... Be7 {[%clk 0:02:50.2]} 7.
O-O {[%clk 0:02:52.3]} 7... Nc6 {[%clk 0:02:50.9]} 8. c4 {[%clk 0:02:52.4]} 8...
a6 {[%clk 0:02:45.9]} 9. Nc3 {[%clk 0:02:51.4]} 9... d4 {[%clk 0:02:36.1]} 10.
Ne4 {[%clk 0:02:51.2]} 10... b5 {[%clk 0:02:36.8]} 11. b3 {[%clk 0:02:46.5]}
11... Bb7 {[%clk 0:02:37]} 12. Bd2 {[%clk 0:02:41.6]} 12... Qc7 {[%clk
0:02:18.2]} 13. Qe1 {[%clk 0:02:35.9]} 13... f5 {[%clk 0:02:14.5]} 14. exf6
{[%clk 0:02:34.3]} 14... gxf6 {[%clk 0:02:14.7]} 15. Nh4 {[%clk 0:02:24.7]}
15... O-O-O {[%clk 0:01:33.8]} 16. f5 {[%clk 0:02:22.8]} 16... e5 {[%clk
0:01:27.6]} 17. a3 {[%clk 0:02:19.4]} 17... Rdg8 {[%clk 0:01:19.8]} 18. Rc1
{[%clk 0:02:15.7]} 18... Kb8 {[%clk 0:01:19.6]} 19. Bf3 {[%clk 0:02:00.6]} 19...
Qb6 {[%clk 0:01:17]} 20. Kh1 {[%clk 0:01:58.1]} 20... Nd8 {[%clk 0:01:12.6]} 21.
Ba5 {[%clk 0:01:54.3]} 21... Qa7 {[%clk 0:01:12.1]} 22. b4 {[%clk 0:01:43.4]}
22... Nc6 {[%clk 0:01:09.2]} 23. bxc5 {[%clk 0:01:35.5]} 23... bxc4 {[%clk
0:00:53.7]} 24. Rxc4 {[%clk 0:01:30.1]} 24... Nxa5 {[%clk 0:00:51.9]} 25. Qxa5
{[%clk 0:01:31]} 25... Bc6 {[%clk 0:00:51]} 26. Rb1+ {[%clk 0:01:25.9]} 26...
Ka8 {[%clk 0:00:51.6]} 27. Rb6 {[%clk 0:00:49.6]} 27... Bd8 {[%clk 0:00:45.1]}
28. Rcb4 {[%clk 0:00:23.9]} 28... Bc7 {[%clk 0:00:35]} 29. Nd2 {[%clk
0:00:14.5]} 29... Bxf3 {[%clk 0:00:34.2]} 30. Nhxf3 {[%clk 0:00:14.9]} 30...
Bxb6 {[%clk 0:00:30.2]} 31. cxb6 {[%clk 0:00:14.1]} 31... Qb7 {[%clk 0:00:30.8]}
32. Ne4 {[%clk 0:00:13.1]} 32... Rc8 {[%clk 0:00:29.9]} 33. h3 {[%clk
0:00:11.4]} 33... Rc6 {[%clk 0:00:30.2]} 34. Nfd2 {[%clk 0:00:10.1]} 34... Rxb6
{[%clk 0:00:24]} 35. Nc4 {[%clk 0:00:09.2]} 35... Rb5 {[%clk 0:00:21.9]} 36. Qa4
{[%clk 0:00:08]} 36... Rxb4 {[%clk 0:00:17.7]} 37. axb4 {[%clk 0:00:08.6]} 37...
Nb6 {[%clk 0:00:18.4]} 38. Nxb6+ {[%clk 0:00:02.4]} 38... Qxb6 {[%clk
0:00:19.3]} 39. Nc5 {[%clk 0:00:02.9]} 39... Qb5 {[%clk 0:00:18]} 40. Qa3 {[%clk
0:00:02.7]} 40... Ka7 {[%clk 0:00:14.5]} 41. Ne6 {[%clk 0:00:02]} 41... Rc8
{[%clk 0:00:13.6]} 42. Nc5 {[%clk 0:00:02.3]} 42... Rc7 {[%clk 0:00:13.2]} 43.
Kh2 {[%clk 0:00:02.3]} 43... a5 {[%clk 0:00:13.7]} 44. Nb3 {[%clk 0:00:01.3]}
44... Qxb4 {[%clk 0:00:13.7]} 45. Qa2 {[%clk 0:00:01.6]} 45... Rc3 {[%clk
0:00:13.5]} 46. Nxa5 {[%clk 0:00:01.9]} 46... Ra3 {[%clk 0:00:13.6]} 47. Qf7+
{[%clk 0:00:02.1]} 47... Ka6 {[%clk 0:00:13.7]} 48. Nc6 {[%clk 0:00:02.3]} 48...
Qb6 {[%clk 0:00:13.1]} 49. Nd8 {[%clk 0:00:01.5]} 49... Qxd8 {[%clk 0:00:12.6]}
50. Qe6+ {[%clk 0:00:02.1]} 50... Qb6 {[%clk 0:00:12.7]} 51. Qc4+ {[%clk
0:00:02.4]} 51... Qb5 {[%clk 0:00:12.1]} 52. Qc8+ {[%clk 0:00:02.5]} 52... Ka5
{[%clk 0:00:12.1]} 53. Qc7+ {[%clk 0:00:03]} 53... Kb4 {[%clk 0:00:12.6]} 54.
Qe7+ {[%clk 0:00:02.9]} 54... Kb3 {[%clk 0:00:12.5]} 55. Qxf6 {[%clk 0:00:03.8]}
55... Qxd3 {[%clk 0:00:11.9]} 56. Qb6+ {[%clk 0:00:03.5]} 56... Kc2 {[%clk
0:00:11.5]} 57. f6 {[%clk 0:00:03.7]} 57... Qg3+ {[%clk 0:00:11.8]} 58. Kg1
{[%clk 0:00:02.8]} 58... Ra1+ {[%clk 0:00:12.7]} 0-1